[Event "Titled Tuesday Blitz May 23 Early 2023"]
[White "Shubenkova, Veronika"]
[Black "Iskusnyh, Sergei"]
[WhiteFideId "44124040"]
[BlackFideId "4120027"]
[WhiteElo "2060"]
[BlackElo "2492"]
[Result "0-1"]
[Round "09"]
[TimeControl "180+2"]
[Date "2023.05.23"]
[WhiteClock "0:00:04"]
[BlackClock "0:00:27"]

1. e4 {[%clk 0:03:00]}  e6 {[%clk 0:02:57]} 2. d4 {[%clk 0:03:00]}  d5 {[%clk 0:02:57]} 3. exd5 {[%clk 0:03:00]}  exd5 {[%clk 0:02:57]} 4. Nf3 {[%clk 0:03:01]}  Nf6 {[%clk 0:02:57]} 5. Bd3 {[%clk 0:03:00]}  c5 {[%clk 0:02:57]} 6. c3 {[%clk 0:03:00]}  Nc6 {[%clk 0:02:56]} 7. O-O {[%clk 0:02:59]}  Be7 {[%clk 0:02:56]} 8. dxc5 {[%clk 0:02:58]}  Bxc5 {[%clk 0:02:55]} 9. Re1+ {[%clk 0:02:58]}  Be6 {[%clk 0:02:55]} 10. h3 {[%clk 0:02:40]}  O-O {[%clk 0:02:54]} 11. Bg5 {[%clk 0:02:37]}  h6 {[%clk 0:02:52]} 12. Bh4 {[%clk 0:02:37]}  g5 {[%clk 0:02:30]} 13. Bg3 {[%clk 0:02:36]}  Ne4 {[%clk 0:02:19]} 14. Bxe4 {[%clk 0:02:29]}  dxe4 {[%clk 0:02:19]} 15. Nfd2 {[%clk 0:01:59]}  f5 {[%clk 0:02:12]} 16. Qh5 {[%clk 0:01:54]}  Qf6 {[%clk 0:02:05]} 17. Na3 {[%clk 0:01:16]}  Rad8 {[%clk 0:02:04]} 18. Rad1 {[%clk 0:01:15]}  Rd3 {[%clk 0:02:00]} 19. Nf1 {[%clk 0:01:07]}  Bf7 {[%clk 0:01:35]} 20. Qe2 {[%clk 0:01:05]}  f4 {[%clk 0:01:31]} 21. Bh2 {[%clk 0:01:04]}  Rfd8 {[%clk 0:01:25]} 22. b4 {[%clk 0:00:59]}  Bb6 {[%clk 0:00:58]} 23. Rxd3 {[%clk 0:00:53]}  exd3 {[%clk 0:00:58]} 24. Qd2 {[%clk 0:00:53]}  Ne5 {[%clk 0:00:43]} 25. Nb1 {[%clk 0:00:24]}  Nc4 {[%clk 0:00:41]} 26. Qd1 {[%clk 0:00:24]}  d2 {[%clk 0:00:37]} 27. Re2 {[%clk 0:00:17]}  Nb2 {[%clk 0:00:36]} 28. Qxd2 {[%clk 0:00:13]}  Rxd2 {[%clk 0:00:35]} 29. Rxd2 {[%clk 0:00:04]}  Nc4 {[%clk 0:00:32]} 30. Re2 {[%clk 0:00:04]}  Qf5 {[%clk 0:00:29]} 31. Nbd2 {[%clk 0:00:04]}  Qd3 {[%clk 0:00:28]} 32. Nxc4 {[%clk 0:00:01]}  Qxe2 {[%clk 0:00:27]} 33. Nd6 {[%clk 0:00:02]}  Qxf2+ {[%clk 0:00:25]} 34. Kh1 {[%clk 0:00:03]}  Qxf1+ {[%clk 0:00:26]} 35. Bg1 {[%clk 0:00:04]}  Qxg1# {[%clk 0:00:27]} 0-1


[Site "https://www.chess.com"]

[Event "Titled Tuesday Blitz May 23 Early 2023"]
[White "hakanazeri2"]
[Black "Mouhamad, Joachim"]
[BlackFideId "656410"]
[WhiteElo "2571"]
[BlackElo "2125"]
[Result "0-1"]
[Round "09"]
[TimeControl "180+2"]
[Date "2023.05.23"]
[WhiteClock "0:00:05"]
[BlackClock "0:00:03"]

1. d4 {[%clk 0:03:00]}  d5 {[%clk 0:02:59]} 2. Bf4 {[%clk 0:02:59]}  e6 {[%clk 0:02:58]} 3. e3 {[%clk 0:02:59]}  Nf6 {[%clk 0:02:58]} 4. Nf3 {[%clk 0:02:55]}  c5 {[%clk 0:02:59]} 5. c3 {[%clk 0:02:51]}  Bd6 {[%clk 0:02:59]} 6. Bxd6 {[%clk 0:02:49]}  Qxd6 {[%clk 0:02:59]} 7. Bb5+ {[%clk 0:02:49]}  Bd7 {[%clk 0:02:58]} 8. a4 {[%clk 0:02:48]}  O-O {[%clk 0:02:58]} 9. Ne5 {[%clk 0:02:45]}  Nc6 {[%clk 0:02:55]} 10. f4 {[%clk 0:02:43]}  Ne4 {[%clk 0:02:53]} 11. Nd2 {[%clk 0:02:42]}  Nxd2 {[%clk 0:02:36]} 12. Qxd2 {[%clk 0:02:27]}  f6 {[%clk 0:02:36]} 13. Nxd7 {[%clk 0:02:25]}  Qxd7 {[%clk 0:02:34]} 14. dxc5 {[%clk 0:02:23]}  Rad8 {[%clk 0:02:18]} 15. b4 {[%clk 0:02:22]}  e5 {[%clk 0:02:10]} 16. O-O {[%clk 0:02:11]}  Kh8 {[%clk 0:01:55]} 17. Rad1 {[%clk 0:02:06]}  Qe6 {[%clk 0:01:52]} 18. f5 {[%clk 0:01:41]}  Qe7 {[%clk 0:01:50]} 19. e4 {[%clk 0:01:37]}  d4 {[%clk 0:01:27]} 20. Qc2 {[%clk 0:01:10]}  g6 {[%clk 0:01:20]} 21. fxg6 {[%clk 0:01:08]}  hxg6 {[%clk 0:01:19]} 22. Rf3 {[%clk 0:01:09]}  Kg7 {[%clk 0:01:20]} 23. Rfd3 {[%clk 0:01:08]}  f5 {[%clk 0:01:02]} 24. Bxc6 {[%clk 0:01:02]}  bxc6 {[%clk 0:01:02]} 25. exf5 {[%clk 0:01:03]}  Rxf5 {[%clk 0:00:56]} 26. cxd4 {[%clk 0:01:03]}  exd4 {[%clk 0:00:52]} 27. h3 {[%clk 0:00:52]}  Qe4 {[%clk 0:00:49]} 28. Qb2 {[%clk 0:00:51]}  Rfd5 {[%clk 0:00:44]} 29. Qd2 {[%clk 0:00:46]}  a6 {[%clk 0:00:41]} 30. Re1 {[%clk 0:00:45]}  Qh4 {[%clk 0:00:36]} 31. Re6 {[%clk 0:00:43]}  Rf8 {[%clk 0:00:28]} 32. Rxc6 {[%clk 0:00:33]}  Rf7 {[%clk 0:00:28]} 33. Rd6 {[%clk 0:00:32]}  Re5 {[%clk 0:00:14]} 34. R6xd4 {[%clk 0:00:24]}  Re1+ {[%clk 0:00:13]} 35. Kh2 {[%clk 0:00:23]}  Qe7 {[%clk 0:00:14]} 36. Rg3 {[%clk 0:00:21]}  Qe5 {[%clk 0:00:12]} 37. Rg4 {[%clk 0:00:19]}  Rf6 {[%clk 0:00:12]} 38. Qd7+ {[%clk 0:00:18]}  Kf8 {[%clk 0:00:08]} 39. Qd8+ {[%clk 0:00:16]}  Kg7 {[%clk 0:00:08]} 40. Qd7+ {[%clk 0:00:15]}  Kf8 {[%clk 0:00:09]} 41. Rg5 {[%clk 0:00:10]}  Qa1 {[%clk 0:00:03]} 42. R3g4 {[%clk 0:00:05]}  Rh1+ {[%clk 0:00:03]} 43. Kg3 {[%clk 0:00:05]}  Qe1# {[%clk 0:00:03]} 0-1


[Site "https://www.chess.com"]

[Event "Titled Tuesday Blitz May 23 Early 2023"]
[White "Tologon tegin, Semetei"]
[Black "Kovalevsky, Stanislav"]
[WhiteFideId "13800574"]
[BlackFideId "13508598"]
[WhiteElo "2247"]
[BlackElo "2174"]
[Result "1-0"]
[Round "09"]
[TimeControl "180+2"]
[Date "2023.05.23"]
[WhiteClock "0:01:19"]
[BlackClock "0:00:40"]

1. Nf3 {[%clk 0:03:00]}  d5 {[%clk 0:02:59]} 2. e3 {[%clk 0:03:01]}  Nd7 {[%clk 0:02:52]} 3. d4 {[%clk 0:03:02]}  c6 {[%clk 0:02:47]} 4. Bd3 {[%clk 0:03:01]}  Qc7 {[%clk 0:02:47]} 5. O-O {[%clk 0:03:00]}  e5 {[%clk 0:02:47]} 6. dxe5 {[%clk 0:03:00]}  Nxe5 {[%clk 0:02:48]} 7. Nxe5 {[%clk 0:03:01]}  Qxe5 {[%clk 0:02:49]} 8. e4 {[%clk 0:03:01]}  dxe4 {[%clk 0:02:38]} 9. Bxe4 {[%clk 0:03:01]}  Be6 {[%clk 0:02:34]} 10. Re1 {[%clk 0:02:59]}  Qa5 {[%clk 0:02:24]} 11. Bd2 {[%clk 0:02:55]}  Bb4 {[%clk 0:02:23]} 12. Bc3 {[%clk 0:02:36]}  Nf6 {[%clk 0:02:08]} 13. a3 {[%clk 0:02:00]}  Nxe4 {[%clk 0:02:05]} 14. Bxb4 {[%clk 0:01:55]}  Qf5 {[%clk 0:02:05]} 15. f3 {[%clk 0:01:45]}  Nf6 {[%clk 0:01:48]} 16. Qd6 {[%clk 0:01:44]}  Nd5 {[%clk 0:01:49]} 17. Nc3 {[%clk 0:01:34]}  Nxb4 {[%clk 0:01:28]} 18. axb4 {[%clk 0:01:33]}  a6 {[%clk 0:01:24]} 19. Re5 {[%clk 0:01:28]}  Qxc2 {[%clk 0:01:07]} 20. Rae1 {[%clk 0:01:28]}  Qb3 {[%clk 0:00:53]} 21. Rxe6+ {[%clk 0:01:24]}  fxe6 {[%clk 0:00:53]} 22. Rxe6+ {[%clk 0:01:24]}  Kf7 {[%clk 0:00:51]} 23. Re7+ {[%clk 0:01:21]}  Kg8 {[%clk 0:00:47]} 24. Qe5 {[%clk 0:01:20]}  Qxb4 {[%clk 0:00:40]} 25. Qxg7# {[%clk 0:01:19]} 1-0


[Site "https://www.chess.com"]

[Event "Titled Tuesday Blitz May 23 Early 2023"]
[White "Degenbaev, Aziz"]
[Black "Golubev, Mikhail"]
[WhiteFideId "13802640"]
[BlackFideId "14100983"]
[WhiteElo "2152"]
[BlackElo "2374"]
[Result "1-0"]
[Round "09"]
[TimeControl "180+2"]
[Date "2023.05.23"]
[WhiteClock "0:00:12"]
[BlackClock "0:00:00"]

1. e4 {[%clk 0:02:57]}  c5 {[%clk 0:02:58]} 2. Nf3 {[%clk 0:02:57]}  d6 {[%clk 0:02:59]} 3. d4 {[%clk 0:02:57]}  Nf6 {[%clk 0:02:59]} 4. dxc5 {[%clk 0:02:39]}  Nxe4 {[%clk 0:02:57]} 5. cxd6 {[%clk 0:02:36]}  Nc6 {[%clk 0:02:58]} 6. Be3 {[%clk 0:02:28]}  e5 {[%clk 0:02:47]} 7. Bd3 {[%clk 0:02:22]}  Nxd6 {[%clk 0:02:46]} 8. Nc3 {[%clk 0:02:22]}  Be7 {[%clk 0:02:38]} 9. Qe2 {[%clk 0:02:16]}  O-O {[%clk 0:02:30]} 10. Rd1 {[%clk 0:02:02]}  Be6 {[%clk 0:02:03]} 11. O-O {[%clk 0:01:53]}  Qc7 {[%clk 0:01:56]} 12. Ng5 {[%clk 0:01:36]}  Bxg5 {[%clk 0:01:55]} 13. Bxg5 {[%clk 0:01:36]}  f6 {[%clk 0:01:53]} 14. Be3 {[%clk 0:01:32]}  b6 {[%clk 0:01:13]} 15. f4 {[%clk 0:00:42]}  Rae8 {[%clk 0:00:52]} 16. Qh5 {[%clk 0:00:42]}  g6 {[%clk 0:00:34]} 17. Bxg6 {[%clk 0:00:41]}  hxg6 {[%clk 0:00:34]} 18. Qxg6+ {[%clk 0:00:41]}  Kh8 {[%clk 0:00:28]} 19. Qh6+ {[%clk 0:00:41]}  Kg8 {[%clk 0:00:28]} 20. Qg6+ {[%clk 0:00:39]}  Kh8 {[%clk 0:00:28]} 21. Qh6+ {[%clk 0:00:29]}  Kg8 {[%clk 0:00:26]} 22. Rf3 {[%clk 0:00:30]}  Nf5 {[%clk 0:00:13]} 23. Qh5 {[%clk 0:00:23]}  Qh7 {[%clk 0:00:10]} 24. Qg4+ {[%clk 0:00:19]}  Qg7 {[%clk 0:00:08]} 25. Qh5 {[%clk 0:00:19]}  Qh6 {[%clk 0:00:04]} 26. Qg4+ {[%clk 0:00:18]}  Ng7 {[%clk 0:00:04]} 27. f5 {[%clk 0:00:11]}  Bxf5 {[%clk 0:00:00]} 28. Qc4+ {[%clk 0:00:12]} 1-0


[Site "https://www.chess.com"]

[Event "Titled Tuesday Blitz May 23 Early 2023"]
[White "Filipascu"]
[Black "Kirillov, Dmitry"]
[BlackFideId "34180572"]
[WhiteElo "2530"]
[BlackElo "2161"]
[Result "1-0"]
[Round "09"]
[TimeControl "180+2"]
[Date "2023.05.23"]
[WhiteClock "0:00:55"]
[BlackClock "0:00:00"]

1. c4 {[%clk 0:03:00]}  e6 {[%clk 0:02:56]} 2. Nc3 {[%clk 0:03:00]}  d5 {[%clk 0:02:56]} 3. e3 {[%clk 0:02:59]}  c5 {[%clk 0:02:52]} 4. cxd5 {[%clk 0:02:53]}  exd5 {[%clk 0:02:53]} 5. d4 {[%clk 0:02:51]}  Nf6 {[%clk 0:02:47]} 6. Nf3 {[%clk 0:02:50]}  Nc6 {[%clk 0:02:41]} 7. a3 {[%clk 0:02:45]}  a6 {[%clk 0:02:35]} 8. Be2 {[%clk 0:02:34]}  Bg4 {[%clk 0:02:34]} 9. O-O {[%clk 0:02:33]}  Be7 {[%clk 0:02:33]} 10. dxc5 {[%clk 0:02:33]}  Bxc5 {[%clk 0:02:34]} 11. b4 {[%clk 0:02:33]}  Bd6 {[%clk 0:02:30]} 12. h3 {[%clk 0:02:32]}  Bh5 {[%clk 0:02:28]} 13. Bb2 {[%clk 0:02:32]}  O-O {[%clk 0:02:27]} 14. Nd4 {[%clk 0:02:28]}  Bg6 {[%clk 0:02:21]} 15. Rc1 {[%clk 0:02:20]}  Rc8 {[%clk 0:02:17]} 16. Nxc6 {[%clk 0:02:14]}  Rxc6 {[%clk 0:02:16]} 17. b5 {[%clk 0:02:01]}  axb5 {[%clk 0:02:13]} 18. Bxb5 {[%clk 0:02:02]}  Rc8 {[%clk 0:01:47]} 19. a4 {[%clk 0:02:02]}  Be5 {[%clk 0:01:03]} 20. f4 {[%clk 0:01:49]}  Bb8 {[%clk 0:01:01]} 21. Qd4 {[%clk 0:01:43]}  Be4 {[%clk 0:00:56]} 22. Rfd1 {[%clk 0:01:36]}  Qe7 {[%clk 0:00:52]} 23. Nxe4 {[%clk 0:01:33]}  dxe4 {[%clk 0:00:52]} 24. Rxc8 {[%clk 0:01:25]}  Rxc8 {[%clk 0:00:53]} 25. Qb6 {[%clk 0:01:24]}  h5 {[%clk 0:00:04]} 26. Bxf6 {[%clk 0:01:05]}  Qxf6 {[%clk 0:00:04]} 27. Qxb7 {[%clk 0:01:03]}  Rd8 {[%clk 0:00:03]} 28. Rxd8+ {[%clk 0:01:02]}  Qxd8 {[%clk 0:00:03]} 29. Qxe4 {[%clk 0:01:01]}  Ba7 {[%clk 0:00:04]} 30. Kf2 {[%clk 0:00:54]}  Qd2+ {[%clk 0:00:04]} 31. Be2 {[%clk 0:00:55]}  Qa2 {[%clk 0:00:00]} 32. Qa8+ {[%clk 0:00:55]} 1-0


[Site "https://www.chess.com"]

[Event "Titled Tuesday Blitz May 23 Early 2023"]
[White "Lesbekova, Assel"]
[Black "Sliwicki, Damian"]
[WhiteFideId "13713248"]
[BlackFideId "1127128"]
[WhiteElo "1805"]
[BlackElo "2030"]
[Result "1/2-1/2"]
[Round "09"]
[TimeControl "180+2"]
[Date "2023.05.23"]
[WhiteClock "0:00:05"]
[BlackClock "0:00:06"]

1. e4 {[%clk 0:02:40]}  d5 {[%clk 0:02:55]} 2. exd5 {[%clk 0:02:39]}  Qxd5 {[%clk 0:02:55]} 3. Nc3 {[%clk 0:02:39]}  Qa5 {[%clk 0:02:56]} 4. Nf3 {[%clk 0:02:40]}  Nf6 {[%clk 0:02:55]} 5. h3 {[%clk 0:02:40]}  Bf5 {[%clk 0:02:52]} 6. d4 {[%clk 0:02:40]}  e6 {[%clk 0:02:52]} 7. Bd3 {[%clk 0:02:39]}  c6 {[%clk 0:02:46]} 8. Ne5 {[%clk 0:02:34]}  Bxd3 {[%clk 0:02:44]} 9. Qxd3 {[%clk 0:02:34]}  Be7 {[%clk 0:02:41]} 10. O-O {[%clk 0:02:33]}  O-O {[%clk 0:02:40]} 11. Bd2 {[%clk 0:02:30]}  Qc7 {[%clk 0:02:40]} 12. Rfe1 {[%clk 0:02:23]}  Nbd7 {[%clk 0:02:39]} 13. Qg3 {[%clk 0:02:16]}  Nxe5 {[%clk 0:02:24]} 14. dxe5 {[%clk 0:02:13]}  Nh5 {[%clk 0:02:13]} 15. Qf3 {[%clk 0:02:10]}  g6 {[%clk 0:02:13]} 16. Rad1 {[%clk 0:01:45]}  Rad8 {[%clk 0:02:00]} 17. g4 {[%clk 0:01:40]}  Ng7 {[%clk 0:01:58]} 18. Bf4 {[%clk 0:01:41]}  Rxd1 {[%clk 0:01:54]} 19. Rxd1 {[%clk 0:01:37]}  Rd8 {[%clk 0:01:55]} 20. Ne4 {[%clk 0:01:34]}  Ne8 {[%clk 0:01:47]} 21. Rxd8 {[%clk 0:01:09]}  Qxd8 {[%clk 0:01:44]} 22. Qd3 {[%clk 0:01:09]}  Qd5 {[%clk 0:01:37]} 23. Nc3 {[%clk 0:00:58]}  Qxd3 {[%clk 0:01:33]} 24. cxd3 {[%clk 0:00:59]}  Nc7 {[%clk 0:01:21]} 25. Be3 {[%clk 0:00:59]}  b6 {[%clk 0:01:16]} 26. Ne4 {[%clk 0:00:54]}  Nd5 {[%clk 0:01:15]} 27. Bd2 {[%clk 0:00:55]}  Bb4 {[%clk 0:01:10]} 28. Bc1 {[%clk 0:00:53]}  Kf8 {[%clk 0:00:59]} 29. a3 {[%clk 0:00:44]}  Be7 {[%clk 0:00:58]} 30. f4 {[%clk 0:00:42]}  f6 {[%clk 0:00:48]} 31. d4 {[%clk 0:00:37]}  f5 {[%clk 0:00:42]} 32. gxf5 {[%clk 0:00:29]}  gxf5 {[%clk 0:00:41]} 33. Nf2 {[%clk 0:00:25]}  Bh4 {[%clk 0:00:40]} 34. Nd3 {[%clk 0:00:26]}  Be7 {[%clk 0:00:27]} 35. Kg2 {[%clk 0:00:26]}  c5 {[%clk 0:00:27]} 36. dxc5 {[%clk 0:00:24]}  bxc5 {[%clk 0:00:28]} 37. Bd2 {[%clk 0:00:22]}  c4 {[%clk 0:00:27]} 38. Nb4 {[%clk 0:00:22]}  Bxb4 {[%clk 0:00:21]} 39. Bxb4+ {[%clk 0:00:18]}  Nxb4 {[%clk 0:00:14]} 40. axb4 {[%clk 0:00:19]}  Ke7 {[%clk 0:00:15]} 41. Kf3 {[%clk 0:00:09]}  Kd7 {[%clk 0:00:16]} 42. Ke3 {[%clk 0:00:08]}  Kc6 {[%clk 0:00:17]} 43. Kd4 {[%clk 0:00:08]}  Kb5 {[%clk 0:00:17]} 44. Kc3 {[%clk 0:00:08]}  h6 {[%clk 0:00:16]} 45. h4 {[%clk 0:00:07]}  h5 {[%clk 0:00:16]} 46. b3 {[%clk 0:00:07]}  cxb3 {[%clk 0:00:16]} 47. Kxb3 {[%clk 0:00:07]}  a6 {[%clk 0:00:10]} 48. Kc3 {[%clk 0:00:08]}  Ka4 {[%clk 0:00:11]} 49. Kc4 {[%clk 0:00:08]}  Ka3 {[%clk 0:00:11]} 50. Kc3 {[%clk 0:00:07]}  Ka4 {[%clk 0:00:11]} 51. Kc4 {[%clk 0:00:08]}  Ka3 {[%clk 0:00:11]} 52. Kc5 {[%clk 0:00:08]}  Kb3 {[%clk 0:00:11]} 53. b5 {[%clk 0:00:06]}  axb5 {[%clk 0:00:09]} 54. Kxb5 {[%clk 0:00:07]}  Kc3 {[%clk 0:00:10]} 55. Kc5 {[%clk 0:00:07]}  Kd3 {[%clk 0:00:10]} 56. Kd6 {[%clk 0:00:07]}  Ke4 {[%clk 0:00:11]} 57. Kxe6 {[%clk 0:00:08]}  Kxf4 {[%clk 0:00:12]} 58. Kd6 {[%clk 0:00:08]}  Kg3 {[%clk 0:00:10]} 59. e6 {[%clk 0:00:08]}  f4 {[%clk 0:00:11]} 60. e7 {[%clk 0:00:09]}  f3 {[%clk 0:00:11]} 61. e8=Q {[%clk 0:00:09]}  f2 {[%clk 0:00:12]} 62. Qe2 {[%clk 0:00:05]}  Kg2 {[%clk 0:00:11]} 63. Qe4+ {[%clk 0:00:05]}  Kg1 {[%clk 0:00:11]} 64. Qg6+ {[%clk 0:00:05]}  Kh2 {[%clk 0:00:10]} 65. Qf5 {[%clk 0:00:03]}  Kg1 {[%clk 0:00:08]} 66. Qg5+ {[%clk 0:00:04]}  Kh1 {[%clk 0:00:08]} 67. Qf4 {[%clk 0:00:04]}  Kg2 {[%clk 0:00:08]} 68. Qe4+ {[%clk 0:00:02]}  Kg1 {[%clk 0:00:07]} 69. Qe3 {[%clk 0:00:02]}  Kg2 {[%clk 0:00:07]} 70. Qe2 {[%clk 0:00:01]}  Kg1 {[%clk 0:00:06]} 71. Qxh5 {[%clk 0:00:01]}  f1=Q {[%clk 0:00:06]} 72. Qg4+ {[%clk 0:00:02]}  Kh2 {[%clk 0:00:05]} 73. h5 {[%clk 0:00:02]}  Qd3+ {[%clk 0:00:04]} 74. Ke5 {[%clk 0:00:02]}  Qe3+ {[%clk 0:00:03]} 75. Qe4 {[%clk 0:00:03]}  Qg5+ {[%clk 0:00:03]} 76. Qf5 {[%clk 0:00:03]}  Qe7+ {[%clk 0:00:03]} 77. Qe6 {[%clk 0:00:03]}  Qg5+ {[%clk 0:00:03]} 78. Qf5 {[%clk 0:00:04]}  Qe7+ {[%clk 0:00:03]} 79. Kf4 {[%clk 0:00:04]}  Qh4+ {[%clk 0:00:04]} 80. Qg4 {[%clk 0:00:04]}  Qf6+ {[%clk 0:00:04]} 81. Ke3 {[%clk 0:00:04]}  Qe5+ {[%clk 0:00:04]} 82. Qe4 {[%clk 0:00:04]}  Qxh5 {[%clk 0:00:04]} 83. Qf4+ {[%clk 0:00:05]}  Kh3 {[%clk 0:00:04]} 84. Qf3+ {[%clk 0:00:05]}  Kh4 {[%clk 0:00:05]} 85. Qxh5+ {[%clk 0:00:05]}  Kxh5 {[%clk 0:00:06]} 1/2-1/2


[Site "https://www.chess.com"]

[Event "Titled Tuesday Blitz May 23 Early 2023"]
[White "Bashkansky, Ethan"]
[Black "Goltseva, Ekaterina"]
[WhiteFideId "2071533"]
[BlackFideId "24173770"]
[WhiteElo "2325"]
[BlackElo "2114"]
[Result "1-0"]
[Round "09"]
[TimeControl "180+2"]
[Date "2023.05.23"]
[WhiteClock "0:00:05"]
[BlackClock "0:00:00"]

1. d4 {[%clk 0:03:00]}  d5 {[%clk 0:02:58]} 2. c4 {[%clk 0:03:01]}  dxc4 {[%clk 0:02:58]} 3. Nf3 {[%clk 0:03:00]}  a6 {[%clk 0:02:56]} 4. a4 {[%clk 0:02:59]}  Nf6 {[%clk 0:02:49]} 5. e3 {[%clk 0:02:59]}  Bg4 {[%clk 0:02:49]} 6. Bxc4 {[%clk 0:02:58]}  e6 {[%clk 0:02:48]} 7. O-O {[%clk 0:02:58]}  Nc6 {[%clk 0:02:46]} 8. h3 {[%clk 0:02:47]}  Bh5 {[%clk 0:02:46]} 9. Nbd2 {[%clk 0:02:44]}  Bd6 {[%clk 0:02:45]} 10. b3 {[%clk 0:02:30]}  O-O {[%clk 0:02:43]} 11. Bb2 {[%clk 0:02:29]}  Qe8 {[%clk 0:02:43]} 12. Rc1 {[%clk 0:02:13]}  e5 {[%clk 0:02:39]} 13. dxe5 {[%clk 0:02:13]}  Nxe5 {[%clk 0:02:39]} 14. Be2 {[%clk 0:02:13]}  Rd8 {[%clk 0:02:21]} 15. Nxe5 {[%clk 0:01:36]}  Bxe5 {[%clk 0:02:12]} 16. Bxe5 {[%clk 0:01:30]}  Qxe5 {[%clk 0:01:57]} 17. Bxh5 {[%clk 0:01:25]}  Nxh5 {[%clk 0:01:56]} 18. Nf3 {[%clk 0:01:05]}  Qe7 {[%clk 0:01:27]} 19. Qc2 {[%clk 0:01:04]}  Rd7 {[%clk 0:01:21]} 20. Rfd1 {[%clk 0:01:01]}  Rfd8 {[%clk 0:01:21]} 21. Rxd7 {[%clk 0:00:54]}  Rxd7 {[%clk 0:01:21]} 22. Nd4 {[%clk 0:00:34]}  g6 {[%clk 0:01:21]} 23. Qc5 {[%clk 0:00:31]}  Qd8 {[%clk 0:01:17]} 24. Qa7 {[%clk 0:00:27]}  Nf6 {[%clk 0:01:10]} 25. Qxb7 {[%clk 0:00:17]}  c5 {[%clk 0:00:59]} 26. Nc6 {[%clk 0:00:17]}  Rxb7 {[%clk 0:00:25]} 27. Nxd8 {[%clk 0:00:17]}  Rxb3 {[%clk 0:00:22]} 28. Rxc5 {[%clk 0:00:15]}  Ne4 {[%clk 0:00:19]} 29. Rc2 {[%clk 0:00:12]}  Ra3 {[%clk 0:00:16]} 30. Nb7 {[%clk 0:00:08]}  Rxa4 {[%clk 0:00:15]} 31. f3 {[%clk 0:00:06]}  Ra1+ {[%clk 0:00:14]} 32. Kh2 {[%clk 0:00:06]}  Nf6 {[%clk 0:00:11]} 33. Rc5 {[%clk 0:00:05]}  Nd7 {[%clk 0:00:10]} 34. Ra5 {[%clk 0:00:04]}  Rxa5 {[%clk 0:00:07]} 35. Nxa5 {[%clk 0:00:05]}  Nc5 {[%clk 0:00:06]} 36. e4 {[%clk 0:00:05]}  f6 {[%clk 0:00:05]} 37. Kg3 {[%clk 0:00:04]}  Kf7 {[%clk 0:00:06]} 38. Kf2 {[%clk 0:00:05]}  Ke6 {[%clk 0:00:07]} 39. Ke3 {[%clk 0:00:05]}  h5 {[%clk 0:00:05]} 40. Kd4 {[%clk 0:00:05]}  Nd7 {[%clk 0:00:04]} 41. g3 {[%clk 0:00:05]}  Ne5 {[%clk 0:00:04]} 42. f4 {[%clk 0:00:03]}  Nf3+ {[%clk 0:00:04]} 43. Ke3 {[%clk 0:00:03]}  Ne1 {[%clk 0:00:04]} 44. Kd2 {[%clk 0:00:02]}  Nf3+ {[%clk 0:00:04]} 45. Ke3 {[%clk 0:00:03]}  Ne1 {[%clk 0:00:04]} 46. Kd2 {[%clk 0:00:03]}  Ng2 {[%clk 0:00:03]} 47. Ke2 {[%clk 0:00:03]}  h4 {[%clk 0:00:03]} 48. Kf2 {[%clk 0:00:03]}  hxg3+ {[%clk 0:00:02]} 49. Kxg2 {[%clk 0:00:03]}  g5 {[%clk 0:00:02]} 50. Kxg3 {[%clk 0:00:04]}  gxf4+ {[%clk 0:00:02]} 51. Kxf4 {[%clk 0:00:05]}  Kf7 {[%clk 0:00:00]} 52. Kf5 {[%clk 0:00:05]} 1-0


[Site "https://www.chess.com"]

[Event "Titled Tuesday Blitz May 23 Early 2023"]
[White "Tsyhanchuk, Stanislav"]
[Black "Lehtosaari, Mauri"]
[WhiteFideId "13505130"]
[BlackFideId "501999"]
[WhiteElo "2173"]
[BlackElo "2500"]
[Result "1/2-1/2"]
[Round "09"]
[TimeControl "180+2"]
[Date "2023.05.23"]
[WhiteClock "0:00:03"]
[BlackClock "0:00:06"]

1. c4 {[%clk 0:03:00]}  c6 {[%clk 0:02:50]} 2. e3 {[%clk 0:02:58]}  d5 {[%clk 0:02:50]} 3. Nc3 {[%clk 0:02:58]}  Nf6 {[%clk 0:02:48]} 4. Nf3 {[%clk 0:02:59]}  g6 {[%clk 0:02:35]} 5. d4 {[%clk 0:02:58]}  Bg7 {[%clk 0:02:35]} 6. cxd5 {[%clk 0:02:58]}  cxd5 {[%clk 0:02:35]} 7. Be2 {[%clk 0:02:59]}  O-O {[%clk 0:02:34]} 8. O-O {[%clk 0:02:59]}  Nc6 {[%clk 0:02:24]} 9. Bd2 {[%clk 0:02:54]}  Bg4 {[%clk 0:02:23]} 10. h3 {[%clk 0:02:51]}  Bxf3 {[%clk 0:02:23]} 11. Bxf3 {[%clk 0:02:52]}  e6 {[%clk 0:02:23]} 12. a3 {[%clk 0:02:42]}  Na5 {[%clk 0:02:19]} 13. b3 {[%clk 0:02:35]}  Rc8 {[%clk 0:02:13]} 14. Rc1 {[%clk 0:02:25]}  Re8 {[%clk 0:02:02]} 15. Re1 {[%clk 0:02:17]}  Bf8 {[%clk 0:02:01]} 16. Ra1 {[%clk 0:01:45]}  a6 {[%clk 0:01:13]} 17. Qb1 {[%clk 0:01:44]}  Be7 {[%clk 0:01:08]} 18. Qb2 {[%clk 0:01:43]}  h5 {[%clk 0:01:07]} 19. Rac1 {[%clk 0:01:39]}  Qb6 {[%clk 0:01:01]} 20. Bd1 {[%clk 0:01:16]}  Nc4 {[%clk 0:00:55]} 21. Na4 {[%clk 0:01:13]}  Nxb2 {[%clk 0:00:49]} 22. Nxb6 {[%clk 0:01:12]}  Rxc1 {[%clk 0:00:37]} 23. Bxc1 {[%clk 0:01:13]}  Bxa3 {[%clk 0:00:27]} 24. Be2 {[%clk 0:01:11]}  Ne4 {[%clk 0:00:22]} 25. Nd7 {[%clk 0:00:49]}  Rc8 {[%clk 0:00:20]} 26. Ne5 {[%clk 0:00:46]}  Kg7 {[%clk 0:00:17]} 27. g4 {[%clk 0:00:23]}  hxg4 {[%clk 0:00:16]} 28. hxg4 {[%clk 0:00:24]}  Bb4 {[%clk 0:00:16]} 29. Rf1 {[%clk 0:00:20]}  Rc2 {[%clk 0:00:16]} 30. Bf3 {[%clk 0:00:11]}  Nd2 {[%clk 0:00:15]} 31. Bxd2 {[%clk 0:00:08]}  Bxd2 {[%clk 0:00:11]} 32. g5 {[%clk 0:00:09]}  Rc3 {[%clk 0:00:10]} 33. Ng4 {[%clk 0:00:09]}  Rxb3 {[%clk 0:00:08]} 34. Rb1 {[%clk 0:00:08]}  a5 {[%clk 0:00:07]} 35. Bd1 {[%clk 0:00:07]}  Rb4 {[%clk 0:00:07]} 36. Ne5 {[%clk 0:00:05]}  Nc4 {[%clk 0:00:06]} 37. Rxb4 {[%clk 0:00:05]}  axb4 {[%clk 0:00:07]} 38. Nd3 {[%clk 0:00:05]}  Bc3 {[%clk 0:00:07]} 39. Nc1 {[%clk 0:00:04]}  b6 {[%clk 0:00:06]} 40. Nb3 {[%clk 0:00:04]}  Nb2 {[%clk 0:00:06]} 41. Bc2 {[%clk 0:00:04]}  Kf8 {[%clk 0:00:06]} 42. Kf1 {[%clk 0:00:05]}  Ke7 {[%clk 0:00:07]} 43. Ke2 {[%clk 0:00:05]}  Nc4 {[%clk 0:00:08]} 44. f4 {[%clk 0:00:03]}  Kd6 {[%clk 0:00:08]} 45. Nc1 {[%clk 0:00:04]}  Na5 {[%clk 0:00:08]} 46. Nb3 {[%clk 0:00:03]}  Nc4 {[%clk 0:00:08]} 47. Nc1 {[%clk 0:00:03]}  Kc6 {[%clk 0:00:07]} 48. Nb3 {[%clk 0:00:03]}  Kd6 {[%clk 0:00:06]} 1/2-1/2


[Site "https://www.chess.com"]